lending/lending_fUSD_20250706
["ID","MTS","AMOUNT","RATE_DAILY","PERIOD"]
[369907650,1751773844632,-151.0,0.00018469,2]
[369907651,1751773844641,-151.0,0.00018469,2]
[369907652,1751773844651,-155.297826,0.00018469,2]
[369907653,1751773844660,-365.792703,0.00018469,2]
[369907654,1751773844670,-151.0,0.00018469,2]
[369907655,1751773844680,-151.0,0.00018469,2]
[369907656,1751773844689,-237.174568,0.00018469,2]
[369907657,1751773844699,-237.174568,0.00018469,2]
[369907658,1751773844708,-159.808798,0.00018469,2]
[369907659,1751773844717,-159.808798,0.00018469,2]
[369907660,1751773844727,-151.0,0.00018469,2]
[369907661,1751773844736,-151.0,0.00018469,2]
[369907662,1751773844745,-151.0,0.00018469,2]
[369907663,1751773844754,-151.0,0.00018469,2]
[369907664,1751773844763,-151.0,0.00018469,2]
[369907666,1751773844773,-524.153661,0.00018469,2]
[369907668,1751773844782,-524.153661,0.00018469,2]
[369907670,1751773844792,-151.0,0.00018469,2]
[369907672,1751773844802,-151.0,0.00018469,2]
[369907674,1751773844812,-264.056195,0.00018469,2]
[369907676,1751773844822,-264.056195,0.00018469,2]
[369907678,1751773844832,-1254.987034,0.00018469,2]
[369907680,1751773844842,-1254.987034,0.00018469,2]
[369907682,1751773844854,-267.184285,0.00018469,2]
[369907684,1751773844863,-267.184285,0.00018469,2]
[369907686,1751773844873,-154.455628,0.00018469,2]
[369907688,1751773844883,-151.0,0.00018469,2]
[369907690,1751773844891,-151.0,0.00018469,2]
[369907692,1751773844901,-151.0,0.00018469,2]
[369907694,1751773844910,-151.0,0.00018469,2]
[369907696,1751773844919,-603.761966,0.00018469,2]
[369907698,1751773844928,-603.761966,0.00018469,2]
[369907700,1751773844937,-299.54537,0.00018469,2]
[369907702,1751773844947,-299.54537,0.00018469,2]
[369907704,1751773844957,-166.265388,0.00018469,2]
[369907706,1751773844966,-166.265388,0.00018469,2]
[369907708,1751773844975,-151.0,0.00018469,2]
[369907710,1751773844984,-151.0,0.0001847,2]
[369907712,1751773844994,-2993.807852,0.0001847,2]
[369907714,1751773845003,-151.0,0.0001847,2]
[369907716,1751773845012,-151.0,0.0001847,2]
[369907718,1751773845021,-151.0,0.0001847,2]
[369907720,1751773845030,-151.0,0.0001847,2]
[369907722,1751773845040,-155.658672,0.0001847,2]
[369907724,1751773845049,-151.0,0.0001847,2]
[369907726,1751773845058,-151.0,0.0001847,2]
[369907728,1751773845067,-151.0,0.0001847,2]
[369907730,1751773845077,-240.305162,0.0001847,2]
[369907732,1751773845086,-481.503548,0.0001847,2]
[369907734,1751773845095,-481.503548,0.0001847,2]
[369907735,1751773845105,-154.766648,0.00018471,2]
[369907737,1751773845114,-151.0,0.00018471,2]
[369907739,1751773845123,-151.0,0.00018471,2]
[369907741,1751773845133,-151.0,0.00018471,2]
[369907743,1751773845143,-151.964554,0.00018471,2]
[369907745,1751773845152,-151.0,0.00018471,2]
[369907747,1751773845162,-151.0,0.00018471,2]
[369907749,1751773845171,-151.0,0.00018471,2]
[369907751,1751773845184,-151.0,0.00018471,2]
[369907753,1751773845193,-165.937871,0.00018471,2]
[369907755,1751773845202,-165.937871,0.00018471,2]
[369907757,1751773845211,-151.0,0.00018471,2]
[369907759,1751773845221,-151.0,0.00018471,2]
[369907761,1751773845230,-151.0,0.00018471,2]
[369907763,1751773845240,-151.0,0.00018471,2]
[369907765,1751773845249,-151.0,0.00018471,2]
[369907767,1751773845259,-151.0,0.00018471,2]
[369907769,1751773845270,-151.0,0.00018471,2]
[369907771,1751773845280,-151.0,0.00018471,2]
[369907773,1751773845290,-1090.797006,0.00018471,2]
[369907775,1751773845300,-1090.797006,0.00018471,2]
[369907777,1751773845309,-151.0,0.00018471,2]
[369907779,1751773845318,-151.0,0.00018471,2]
[369907781,1751773845327,-151.0,0.00018471,2]
[369907783,1751773845336,-151.0,0.00018472,2]
[369907785,1751773845346,-151.0,0.00018472,2]
[369907787,1751773845355,-151.0,0.00018472,2]
[369907789,1751773845364,-151.0,0.00018472,2]
[369907791,1751773845373,-151.0,0.00018472,2]
[369907793,1751773845382,-151.0,0.00018472,2]
[369907795,1751773845391,-151.0,0.00018472,2]
[369907797,1751773845400,-165.937871,0.00018472,2]
[369907799,1751773845409,-165.937871,0.00018472,2]
[369907801,1751773845419,-151.0,0.00018472,2]
[369907803,1751773845428,-151.0,0.00018472,2]
[369907805,1751773845438,-151.0,0.00018472,2]
[369907807,1751773845447,-151.0,0.00018472,2]
[369907809,1751773845456,-151.0,0.00018472,2]
[369907811,1751773845465,-151.0,0.00018472,2]
[369907813,1751773845474,-153.218512,0.00018472,2]
[369907814,1751773845483,-1090.797006,0.00018472,2]
[369907816,1751773845493,-1090.797006,0.00018472,2]
[369907818,1751773845502,-151.0,0.00018472,2]
[369907820,1751773845512,-151.0,0.00018472,2]
[369907822,1751773845521,-151.0,0.00018472,2]
[369907824,1751773845530,-151.0,0.00018472,2]
[369907826,1751773845539,-151.0,0.00018472,2]
[369907828,1751773845548,-151.0,0.00018472,2]
[369907830,1751773845558,-151.0,0.00018472,2]
[369907832,1751773845567,-151.0,0.00018472,2]
[369907834,1751773845576,-151.0,0.00018472,2]
[369907836,1751773845585,-151.0,0.00018473,2]
[369907838,1751773845595,-365.792703,0.00018473,2]
[369907840,1751773845605,-151.0,0.00018489,2]
[369907842,1751773845614,-151.0,0.00018489,2]
[369907844,1751773845624,-151.0,0.00018489,2]
[369907846,1751773845633,-151.0,0.00018489,2]
[369907848,1751773845642,-151.0,0.00018489,2]
[369907850,1751773845652,-448.246695,0.00018489,2]
[369907852,1751773845661,-151.0,0.00018489,2]
[369907854,1751773845670,-151.0,0.00018489,2]
[369907856,1751773845680,-151.0,0.00018489,2]
[369907858,1751773845691,-159.808798,0.00018489,2]
[369907861,1751773845701,-159.808798,0.00018489,2]
[369907863,1751773845711,-151.0,0.00018489,2]
[369907865,1751773845720,-151.0,0.00018489,2]
[369907867,1751773845729,-233.32506,0.00018489,2]
[369907869,1751773845738,-151.0,0.00018489,2]
[369907870,1751773845748,-151.0,0.00018489,2]
[369907872,1751773845758,-151.0,0.00018489,2]
[369907874,1751773845769,-264.056195,0.00018489,2]
[369907876,1751773845779,-264.056195,0.00018489,2]
[369907879,1751773845788,-1254.987034,0.00018489,2]
[369907880,1751773845798,-1254.987034,0.00018489,2]
[369907882,1751773845807,-267.184285,0.00018489,2]
[369907884,1751773845816,-267.184285,0.00018489,2]
[369907886,1751773845825,-672.36793666,0.00018489,2]
[369907888,1751773845835,-151.0,0.0001849,2]
[369907890,1751773845844,-152.979594,0.0001849,2]
[369907892,1751773845853,-151.0,0.0001849,2]
[369907894,1751773845862,-158.573263,0.0001849,2]
[369907896,1751773845871,-151.0,0.0001849,2]
[369907898,1751773845881,-151.8334,0.0001849,2]
[369907901,1751773845893,-151.0,0.0001849,2]
[369907902,1751773845902,-151.0,0.0001849,2]
[369907904,1751773845912,-151.0,0.0001849,2]
[369907906,1751773845921,-151.0,0.0001849,2]
[369907908,1751773845931,-442.322635,0.0001849,2]
[369907911,1751773845939,-442.322635,0.0001849,2]
[369907913,1751773845949,-442.322635,0.0001849,2]
[369907916,1751773845958,-442.322635,0.0001849,2]
[369907918,1751773845967,-151.0,0.0001849,2]
[369907920,1751773845976,-151.0,0.0001849,2]
[369907922,1751773845985,-229.803647,0.0001849,2]
[369907924,1751773845994,-151.0,0.0001849,2]
[369907926,1751773846004,-151.0,0.0001849,2]
[369907928,1751773846013,-151.0,0.0001849,2]
[369907931,1751773846022,-151.0,0.0001849,2]
[369907933,1751773846032,-151.0,0.0001849,2]
[369907935,1751773846041,-165.937871,0.0001849,2]
[369907937,1751773846051,-165.937871,0.0001849,2]
[369907939,1751773846061,-224.572426,0.0001849,2]
[369907941,1751773846070,-224.572426,0.0001849,2]
[369907943,1751773846079,-224.572426,0.0001849,2]
[369907945,1751773846089,-224.572426,0.0001849,2]
[369907947,1751773846098,-151.0,0.0001849,2]
[369907949,1751773846107,-151.0,0.0001849,2]
[369907951,1751773846116,-151.0,0.0001849,2]
[369907953,1751773846126,-268.038838,0.0001849,2]
[369907955,1751773846135,-152.51388,0.0001849,2]
[369907957,1751773846144,-448.246695,0.0001849,2]
[369907959,1751773846153,-151.0,0.0001849,2]
[369907961,1751773846164,-151.0,0.0001849,2]
[369907963,1751773846173,-151.0,0.0001849,2]
[369907965,1751773846182,-2993.807852,0.0001849,2]
[369907967,1751773846194,-151.0,0.0001849,2]
[369907969,1751773846204,-151.0,0.0001849,2]
[369907971,1751773846214,-151.0,0.0001849,2]
[369907974,1751773846223,-1090.797006,0.0001849,2]
[369907975,1751773846232,-1090.797006,0.0001849,2]
[369907977,1751773846242,-365.792703,0.0001849,2]
[369907979,1751773846251,-151.0,0.0001849,2]
[369907981,1751773846261,-151.0,0.0001849,2]
[369907983,1751773846270,-237.174568,0.0001849,2]
[369907985,1751773846279,-237.174568,0.0001849,2]
[369907987,1751773846288,-151.0,0.0001849,2]
[369907989,1751773846297,-273.936783,0.0001849,2]
[369907991,1751773846306,-159.808798,0.0001849,2]
[369907993,1751773846315,-159.808798,0.0001849,2]
[369907995,1751773846325,-151.0,0.0001849,2]
[369907997,1751773846334,-194.555475,0.0001849,2]
[369907999,1751773846343,-151.0,0.0001849,2]
[369908001,1751773846353,-151.0,0.0001849,2]
[369908003,1751773846363,-183.381332,0.0001849,2]
[369908006,1751773846374,-524.153661,0.0001849,2]
[369908008,1751773846384,-524.153661,0.0001849,2]
[369908010,1751773846393,-524.153661,0.0001849,2]
[369908011,1751773846403,-524.153661,0.0001849,2]
[369908013,1751773846412,-151.0,0.0001849,2]
[369908015,1751773846421,-151.0,0.0001849,2]
[369908017,1751773846430,-151.0,0.0001849,2]
[369908019,1751773846440,-899.410286,0.0001849,2]
[369908021,1751773846448,-151.0,0.0001849,2]
[369908023,1751773846457,-899.410286,0.0001849,2]
[369908025,1751773846467,-151.0,0.0001849,2]
[369908027,1751773846476,-151.0,0.0001849,2]
[369908029,1751773846485,-151.0,0.0001849,2]
[369908031,1751773846494,-264.056195,0.0001849,2]
[369908033,1751773846503,-264.056195,0.0001849,2]
[369908035,1751773846513,-199.678059,0.0001849,2]
[369908037,1751773846522,-199.678059,0.0001849,2]
[369908040,1751773846531,-151.0,0.0001849,2]
[369908043,1751773846540,-151.0,0.0001849,2]
[369908045,1751773846549,-151.0,0.0001849,2]
[369908047,1751773846558,-152.843162,0.0001849,2]
[369908049,1751773846567,-151.0,0.0001849,2]
[369908051,1751773846577,-151.429159,0.0001849,2]
[369908054,1751773846586,-237.93452,0.0001849,2]
[369908057,1751773846595,-237.93452,0.0001849,2]
[369908059,1751773846605,-151.0,0.0001849,2]
[369908062,1751773846614,-152.892677,0.0001849,2]
[369908064,1751773846623,-151.0,0.0001849,2]
[369908066,1751773846632,-151.0,0.0001849,2]
[369908068,1751773846641,-154.326757,0.0001849,2]
[369908070,1751773846650,-151.0,0.0001849,2]
[369908072,1751773846659,-151.0,0.0001849,2]
[369908074,1751773846669,-151.0,0.0001849,2]
[369908076,1751773846679,-152.971865,0.0001849,2]
[369908078,1751773846688,-151.0,0.0001849,2]
[369908080,1751773846697,-151.0,0.0001849,2]
[369908082,1751773846707,-151.0,0.0001849,2]
[369908084,1751773846716,-1254.987034,0.0001849,2]
[369908086,1751773846725,-1254.987034,0.0001849,2]
[369908088,1751773846735,-605.107466,0.0001849,2]
[369908090,1751773846744,-267.184285,0.0001849,2]
[369908092,1751773846753,-605.107466,0.0001849,2]
[369908094,1751773846762,-267.184285,0.0001849,2]
[369908096,1751773846771,-151.0,0.0001849,2]
[369908098,1751773846780,-151.0,0.0001849,2]
[369908099,1751773846789,-151.0,0.0001849,2]
[369908101,1751773846798,-481.503548,0.0001849,2]
[369908103,1751773846807,-481.503548,0.0001849,2]
[369908105,1751773846816,-275.175374,0.0001849,2]
[369908107,1751773846826,-275.175374,0.0001849,2]
[369908109,1751773846835,-151.0,0.0001849,2]
[369908111,1751773846844,-151.0,0.0001849,2]
[369908113,1751773846853,-153.151169,0.000185,2]
[369908115,1751773846862,-151.0,0.000185,2]
[369908116,1751773846871,-364.285573,0.000185,2]
[369908118,1751773846880,-364.285573,0.000185,2]
[369908120,1751773846889,-153.57929,0.000185,2]
[369908122,1751773846899,-166.265388,0.000185,2]
[369908124,1751773846908,-166.265388,0.000185,2]
[369908126,1751773846917,-1200.0,0.000185,6]
[369908128,1751773846926,-168.0,0.00018516,2]
[369908130,1751773846935,-151.0,0.00018521,2]
[369908132,1751773846944,-151.0,0.00018521,2]
[369908134,1751773846953,-151.0,0.00018521,2]
[369908135,1751773846962,-265.77,0.00018532,2]
[369908137,1751773846971,-644.22324442,0.00018532,2]
[369908139,1751773846980,-151.0,0.00018533,2]
[369908141,1751773846990,-151.0,0.00018533,2]
[369908143,1751773846999,-151.0,0.00018533,2]
[369908145,1751773847009,-151.0,0.00018533,2]
[369908147,1751773847018,-151.0,0.00018533,2]
[369908149,1751773847027,-151.0,0.00018533,2]
[369908151,1751773847037,-151.0,0.00018533,2]
[369908153,1751773847047,-321.306437,0.00018533,2]
[369908155,1751773847057,-321.306437,0.00018533,2]
[369908157,1751773847066,-603.761966,0.00018533,2]
[369908159,1751773847075,-603.761966,0.00018533,2]
[369908161,1751773847085,-299.54537,0.00018533,2]
[369908163,1751773847094,-299.54537,0.00018533,2]
[369908165,1751773847103,-151.0,0.00018533,2]
[369908167,1751773847113,-150.99,0.00018533,2]
[369908169,1751773847123,-7576.59,0.00018533,2]
[369908171,1751773847132,-3158.9,0.00018533,2]
[369908173,1751773847141,-999.99,0.00018533,2]
[369908189,1751773847300,-7769.94,0.00018533,2]
[369908191,1751773847315,-9999.99,0.00018533,2]
[369908193,1751773847325,-1672.0,0.00018533,2]
[369908195,1751773847334,-151.0,0.00018541,2]
[369908197,1751773847343,-151.0,0.00018541,2]
[369908199,1751773847353,-218.71,0.00018553,2]
[369908201,1751773847362,-1117.0,0.00018554,2]
[369908203,1751773847372,-208.0,0.0001859,2]
[369908205,1751773847381,-1489.0,0.0001859,2]
[369908207,1751773847391,-644.22324442,0.00018599,2]
[369908209,1751773847400,-152.0,0.00018599,3]
[369908211,1751773847410,-5000.0,0.000186,2]
[369908213,1751773847420,-453.3325,0.000186,2]
[369908215,1751773847430,-2500.0,0.000186,6]
[369908217,1751773847440,-151.0,0.0001861,2]
[369908219,1751773847450,-151.0,0.0001861,2]
[369908221,1751773847459,-278.324357,0.0001861,2]
[369908223,1751773847468,-278.324357,0.0001861,2]
[369908225,1751773847477,-6616.18672927,0.00018612,2]
[369908227,1751773847486,-4161.66709918,0.00018612,2]
[369908228,1751773847497,-218.71,0.0001864,2]
[369908230,1751773847508,-181.0,0.00018664,2]
[369908232,1751773847518,-644.22324442,0.00018666,2]
[369908234,1751773847528,-162.86701229,0.00018688,2]
[369908236,1751773847538,-151.0,0.0001869,2]
[369908238,1751773847548,-151.0,0.0001869,2]
[369908240,1751773847558,-151.0,0.0001869,2]
[369908243,1751773847568,-151.0,0.0001869,2]
[369908244,1751773847577,-181.800458,0.0001869,2]
[369908246,1751773847586,-181.800458,0.0001869,2]
[369908248,1751773847595,-151.0,0.0001869,2]
[369908250,1751773847604,-151.0,0.0001869,2]
[369908252,1751773847614,-828.388983,0.0001869,2]
[369908254,1751773847623,-828.388983,0.0001869,2]
[369908256,1751773847633,-151.0,0.000187,2]
[369908258,1751773847642,-203.98621,0.000187,2]
[369908260,1751773847651,-151.0,0.000187,2]
[369908262,1751773847660,-151.0,0.000187,2]
[369908264,1751773847671,-153.486758,0.000187,2]
[369908265,1751773847680,-153.178635,0.000187,2]
[369908266,1751773847690,-155.129621,0.000187,2]
[369908267,1751773847701,-151.0,0.000187,2]
[369908268,1751773847710,-151.0,0.000187,2]
[369908269,1751773847719,-228.944806,0.000187,2]
[369908270,1751773847728,-151.0,0.000187,2]
[369908271,1751773847737,-165.937871,0.000187,2]
[369908272,1751773847746,-165.937871,0.000187,2]
[369908273,1751773847756,-151.0,0.000187,2]
[369908274,1751773847765,-151.0,0.000187,2]
[369908275,1751773847774,-151.0,0.000187,2]
[369908276,1751773847783,-448.246695,0.000187,2]
[369908277,1751773847793,-151.0,0.000187,2]
[369908278,1751773847802,-151.0,0.000187,2]
[369908279,1751773847812,-2993.807852,0.000187,2]
[369908280,1751773847821,-151.0,0.000187,2]
[369908281,1751773847830,-151.0,0.000187,2]
[369908282,1751773847839,-151.0,0.000187,2]
[369908283,1751773847849,-151.0,0.000187,2]
[369908285,1751773847859,-1090.797006,0.000187,2]
[369908287,1751773847868,-1090.797006,0.000187,2]
[369908289,1751773847877,-365.792703,0.000187,2]
[369908291,1751773847886,-151.0,0.000187,2]
[369908293,1751773847895,-151.0,0.000187,2]
[369908295,1751773847904,-237.174568,0.000187,2]
[369908297,1751773847913,-237.174568,0.000187,2]
[369908299,1751773847922,-151.0,0.000187,2]
[369908301,1751773847931,-159.808798,0.000187,2]
[369908303,1751773847940,-159.808798,0.000187,2]
[369908305,1751773847950,-151.0,0.000187,2]
[369908307,1751773847959,-151.0,0.000187,2]
[369908309,1751773847968,-151.0,0.000187,2]
[369908311,1751773847977,-524.153661,0.000187,2]
[369908313,1751773847986,-524.153661,0.000187,2]
[369908315,1751773847996,-151.0,0.000187,2]
[369908317,1751773848005,-151.0,0.000187,2]
[369908319,1751773848014,-151.0,0.000187,2]
[369908321,1751773848024,-264.056195,0.000187,2]
[369908323,1751773848033,-264.056195,0.000187,2]
[369908324,1751773848043,-151.0,0.000187,2]
[369908326,1751773848052,-151.0,0.000187,2]
[369908328,1751773848062,-151.0,0.000187,2]
[369908330,1751773848072,-151.0,0.000187,2]
[369908332,1751773848081,-213.191583,0.000187,2]
[369908334,1751773848091,-151.0,0.000187,2]
[369908336,1751773848100,-151.0,0.000187,2]
[369908338,1751773848109,-151.0,0.000187,2]
[369908340,1751773848118,-1254.987034,0.000187,2]
[369908342,1751773848128,-1254.987034,0.000187,2]
[369908344,1751773848138,-267.184285,0.000187,2]
[369908346,1751773848147,-267.184285,0.000187,2]
[369908348,1751773848157,-151.0,0.000187,2]
[369908350,1751773848167,-151.0,0.000187,2]
[369908352,1751773848176,-151.0,0.000187,2]
[369908354,1751773848185,-481.503548,0.000187,2]
[369908356,1751773848195,-481.503548,0.000187,2]
[369908358,1751773848204,-3800.0,0.000187,6]
[369908360,1751773848213,-151.0,0.000187,2]
[369908362,1751773848223,-151.0,0.000187,2]
[369908364,1751773848233,-151.0,0.000187,2]
[369908366,1751773848242,-151.0,0.000187,2]
[369908368,1751773848251,-958.0,0.00018706,2]
[369908370,1751773848261,-200.0,0.00018706,2]
[369908372,1751773848270,-587.0,0.00018706,2]
[369908374,1751773848279,-202.34896819,0.00018706,2]
[369908376,1751773848288,-666.0,0.00018706,2]
[369908378,1751773848299,-152.44182561,0.00018706,2]
[369908380,1751773848309,-150.0,0.00018706,2]
[369908382,1751773848318,-204.44960273,0.00018706,2]
[369908384,1751773848328,-199.678059,0.00018706,2]
[369908386,1751773848338,-199.678059,0.00018706,2]
[369908388,1751773848347,-161.432793,0.00018706,2]
[369908390,1751773848356,-605.107466,0.00018706,2]
[369908392,1751773848365,-605.107466,0.00018706,2]
[369908394,1751773848375,-151.0,0.00018706,2]
[369908395,1751773848385,-201.39602918,0.00018711,2]
[369908397,1751773848394,-500.0,0.00018711,2]
[369908399,1751773848404,-150.0,0.00018711,2]
[369908401,1751773848413,-500.0,0.00018711,2]
[369908403,1751773848423,-201.8375082,0.00018711,2]
[369908405,1751773848432,-150.0,0.00018711,2]
[369908407,1751773848442,-181.0,0.00018712,2]
[369908409,1751773848451,-218.71,0.00018727,2]
[369908411,1751773848461,-644.22324442,0.00018732,2]
[369908413,1751773848471,-151.0,0.00018733,2]
[369908415,1751773848480,-151.0,0.00018733,2]
[369908417,1751773848489,-151.0,0.00018733,2]
[369908419,1751773848499,-603.761966,0.00018733,2]
[369908421,1751773848508,-603.761966,0.00018733,2]
[369908423,1751773848517,-299.54537,0.00018733,2]
[369908425,1751773848526,-299.54537,0.00018733,2]
[369908427,1751773848536,-166.265388,0.00018733,2]
[369908429,1751773848546,-166.265388,0.00018733,2]
[369908431,1751773848555,-461.57045696,0.00018783,2]
[369908433,1751773848565,-1671.76932284,0.00018789,2]
[369908435,1751773848574,-208.0,0.0001879,2]
[369908437,1751773848584,-151.0,0.0001879,2]
[369908439,1751773848594,-151.0,0.0001879,2]
[369908441,1751773848603,-899.410286,0.0001879,2]
[369908443,1751773848613,-151.0,0.0001879,2]
[369908445,1751773848622,-899.410286,0.0001879,2]
[369908447,1751773848631,-151.0,0.0001879,2]
[369908449,1751773848641,-295.693063,0.0001879,2]
[369908451,1751773848650,-151.0,0.0001879,2]
[369908453,1751773848660,-237.93452,0.0001879,2]
[369908455,1751773848669,-237.93452,0.0001879,2]
[369908457,1751773848678,-151.0,0.0001879,2]
[369908458,1751773848687,-266.566997,0.0001879,2]
[369908460,1751773848697,-151.0,0.0001879,2]
[369908462,1751773848706,-151.0,0.0001879,2]
[369908464,1751773848716,-151.0,0.0001879,2]
[369908466,1751773848725,-275.175374,0.0001879,2]
[369908468,1751773848735,-275.175374,0.0001879,2]
[369908470,1751773848745,-321.306437,0.0001879,2]
[369908472,1751773848754,-321.306437,0.0001879,2]
[369908474,1751773848764,-4109.3322,0.0001879,2]
[369908476,1751773848773,-644.22324442,0.00018799,2]
[369908478,1751773848782,-151.0,0.000188,2]
[369908480,1751773848791,-151.0,0.000188,2]
[369908482,1751773848800,-5100.0,0.000188,6]
[369908484,1751773848810,-218.71,0.00018813,2]
[369908486,1751773848819,-6616.18672927,0.00018814,2]
[369908488,1751773848828,-4161.66709918,0.00018814,2]
[369908490,1751773848837,-461.57045694,0.00018837,2]
[369908492,1751773848846,-644.22324442,0.00018865,2]
[369908494,1751773848856,-442.322635,0.00018869,2]
[369908496,1751773848865,-442.322635,0.00018869,2]
[369908498,1751773848874,-224.572426,0.00018869,2]
[369908500,1751773848884,-224.572426,0.00018869,2]
[369908502,1751773848894,-151.0,0.00018869,2]
[369908504,1751773848903,-151.0,0.00018869,2]
[369908506,1751773848913,-159.808798,0.00018869,2]
[369908508,1751773848922,-159.808798,0.00018869,2]
[369908510,1751773848932,-154.511958,0.00018869,2]
[369908511,1751773848941,-151.0,0.00018869,2]
[369908512,1751773848950,-151.0,0.00018869,2]
[369908514,1751773848960,-264.056195,0.00018869,2]
[369908516,1751773848970,-264.056195,0.00018869,2]
[369908518,1751773848979,-1254.987034,0.00018869,2]
[369908520,1751773848988,-1254.987034,0.00018869,2]
[369908522,1751773848997,-267.184285,0.00018869,2]
[369908524,1751773849007,-267.184285,0.00018869,2]
[369908526,1751773849017,-151.0,0.0001887,2]
[369908528,1751773849026,-151.0,0.0001887,2]
[369908530,1751773849035,-501.21167816,0.0001887,2]
[369908531,1751773849045,-524.153661,0.00018873,2]
[369908533,1751773849054,-524.153661,0.00018873,2]
[369908535,1751773849064,-154.815088,0.00018873,2]
[369908537,1751773849073,-237.174568,0.00018876,2]
[369908539,1751773849082,-237.174568,0.00018876,2]
[369908541,1751773849091,-10246.003112,0.00018882,2]
[369908543,1751773849101,-2993.807852,0.00018883,2]
[369908545,1751773849110,-151.0,0.00018883,2]
[369908547,1751773849119,-155.159254,0.00018883,2]
[369908548,1751773849128,-151.0,0.00018889,2]
[369908550,1751773849137,-161.494649,0.00018889,2]
[369908552,1751773849146,-278.324357,0.00018889,2]
[369908554,1751773849156,-278.324357,0.00018889,2]
[369908556,1751773849166,-151.0,0.00018889,2]
[369908558,1751773849176,-151.0,0.00018889,2]
[369908560,1751773849185,-165.937871,0.00018889,2]
[369908562,1751773849196,-165.937871,0.00018889,2]
[369908564,1751773849205,-151.0,0.00018889,2]
[369908566,1751773849215,-151.0,0.00018889,2]
[369908568,1751773849224,-151.0,0.00018889,2]
[369908570,1751773849235,-151.0,0.00018889,2]
[369908572,1751773849244,-151.0,0.00018889,2]
[369908573,1751773849255,-290.291511,0.00018889,2]
[369908575,1751773849266,-1090.797006,0.00018889,2]
[369908577,1751773849277,-1090.797006,0.00018889,2]
[369908579,1751773849286,-365.792703,0.00018889,2]
[369908581,1751773849296,-237.174568,0.00018889,2]
[369908583,1751773849305,-237.174568,0.00018889,2]
[369908585,1751773849316,-151.0,0.00018889,2]
[369908587,1751773849325,-151.0,0.00018889,2]
[369908589,1751773849337,-151.0,0.0001889,2]
[369908591,1751773849346,-151.0,0.0001889,2]
[369908593,1751773849356,-151.0,0.0001889,2]
[369908595,1751773849366,-151.0,0.0001889,2]
[369908597,1751773849376,-151.0,0.0001889,2]
[369908599,1751773849385,-157.68888398,0.0001889,2]
[369908601,1751773849395,-151.0,0.0001889,2]
[369908603,1751773849404,-151.0,0.0001889,2]
[369908605,1751773849414,-318.16257386,0.0001889,2]
[369908606,1751773849423,-151.0,0.0001889,2]
[369908608,1751773849433,-481.503548,0.0001889,2]
[369908610,1751773849443,-481.503548,0.0001889,2]
[369908613,1751773849453,-151.0,0.0001889,2]
[369908614,1751773849462,-461.57045694,0.0001889,2]
[369908616,1751773849472,-151.0,0.0001889,2]
[369908618,1751773849481,-151.0,0.0001889,2]
[369908620,1751773849491,-11354.14316626,0.0001889,2]
[369908622,1751773849500,-151.0,0.00018899,2]